Workbook

Sheet Pasiūlymas
A2: PIKIMO SĄLYGŲ PRIEDAS "PASIŪLYMO FORMA"
A4: PRIEMONIŲ TRAUMATOLOGIJAI PIRKIMAS
A6: Kam: | B6: LSMU Kauno ligoninė
A8: Data: | B8: 2021.10.18
A9: Nr.:
A10: Vieta: | B10: Vilnius
A12: Tiekėjo pavadinimas / Ūkio subjektų grupės nariai: | C12: UAB Kristameda
A13: Tiekėjo kodas (-ai): | C13: 301245735
A14: Tiekėjo adresas (-ai): | C14: Treniotos g. 33, 08115 Vilnius
A15: Tiekėjo PVM mokėtojo kodas(-ai): | C15: LT100003755213
A16: Tiekėjo / Ūkio subjektų grupės atsakingo partnerio sąskaitos numeris, banko pavadinimas ir banko kodas (-ai): | C16: LT157044060008231151, AB SEB bankas, banko kodas 70440
A17: Asmens atsakingo už pasiūlymą vardas, pavardė: | C17: Gintaras Vaitkevičius
A18: Asmens atsakingo už pasiūlymą telefono numeris, el. pašto adresas: | C18: 370 600 68931, kristameda@gmail.com
A19: Tiekėjo / Ūkio subjektų grupės, laimėjimo atveju, pasirašančio sutartį asmens vardas, pavardė, pareigos: | C19: Direktorius Gintaras Vaitkevičius
A20: Tiekėjo / Ūkio subjektų grupės, laimėjimo atveju, už sutarties vykdymą atsakingo asmens vardas, pavardė, telefono numeris, elektroninio pašto adresas: | C20: Direktorius Gintaras Vaitkevičius
A21: (1) Tiekėjo / Ūkio subjektų grupės narių, (2) ūkio subjektų, kurių pajėgumais remiamasi, ir (3) jei pašalinimo pagrindai taikomi visiems subtiekėjams - subtiekėjų, kolegialaus priežiūros organo (Stebėtojų tarybos) ir (ar) kolegialaus valdymo organo (Valdybos) narių sąrašas (jei sudaryta) ir (ar) asmuo, kuriam suteikti VPĮ 46 str. 2 d. 2 p. numatyti įgaliojimai | G21: =IF((SUMPRODUCT(--(C21=""))>0), "Privaloma užpildyti, kai taikomi pašalinimo pagrindai", "") -> Privaloma užpildyti, kai taikomi pašalinimo pagrindai
A23: Tiekėjo patvirtinimai:
A24: 1. Šiuo pasiūlymu pažymime, kad sutinkame su visomi pirkimo sąlygomis, nustatytomis:
A25: 1.1. viešojo pirkimo dokumentuose
A26: 1.2. kituose pirkimo dokumentuose (jų paaiškinimuose, papildymuose).
A27: 2. Patvirtiname, kad informacija ir duomenys, pateikti pasiūlyme, yra teisingi ir apima viską, ko reikia tinkamam sutarties įvykdymui
A28: 3. Patvirtiname, kad jei pasiūlyme nenurodyti kolegialaus priežiūros/valdymo organų nariai, šie organai juridiniuose asmenyse nėra sudaryti (taikoma, kai pirkimo dokumentuose nustatyti pašalinimo pagrindai).
A29: 4. Pasiūlymas galioja iki termino, nustatyto pirkimo dokumentuose.
A30: 5. Tais atvejais, kai pagal galiojančius teisės aktus tiekėjui nereikia mokėti PVM, jis nurodo priežastis, dėl kurių PVM nemoka:
A31: 6. Tiekėjas kainas pateikia, nurodydamas ne daugiau skaičių po kablelio, nei leidžiama pirkimo dokumentuose.
A32: 1. DALIS | B32: PLOKŠTELĖS, SRAIGTAI, VIELOS
A34: Tiekėjo pasiūlymas:
A35: Nr. | B35: Pavadinimas | C35: Kiekis | D35: Mato vienetas | E35: Kaina be PVM, Eur | F35: Suma be PVM, Eur
A36: 1. | B36: Plokštelės, sraigtai, vielos
A37: 1.1. | B37: 1,3-1,5 mm storio T formos užrakinama kondiliarinė plokštelė, 7 kiaurymių plokštelės "stiebe", 2 kiaurymių "galvoje", su įpjova tarp kiaurymių, 54 ± 1,0 mm ilgio, pagaminta iš titano. Fiksuojama Ø 2,0 mm užrakinamais ir Ø 2,0 mm kortikaliniais sraigtais. | C37: 30 | D37: vnt | E37: 95.43 | F37: =IF(ISBLANK(E37),"", PRODUCT(C37,E37)) -> 2862.9
A38: 1.2. | B38: 1,3 ± 0,05 mm storio T formos užrakinama plokštelė, pagaminta iš titano. 7 kiaurymės plokštelės "stiebe", 3 kiaurymės "galvoje", 52 ± 1,0 mm ilgio. Fiksuojama Ø 2,0 mm užrakinamais ir Ø 2,0 mm kortikaliniais sraigtais. | C38: 10 | D38: vnt | E38: 95.43 | F38: 954.3
A39: 1.3. | B39: 1,3 ± 0,05 mm storio Y formos užrakinama plokštelė, 7 kiaurymių plokštelės "stiebe", 3 kiaurymių "galvoje", pagaminta iš titano. Fiksuojama Ø 2,0 mm užrakinamais ir Ø 2,0 mm kortikaliniais sraigtais. | C39: 10 | D39: vnt | E39: 95.43 | F39: 954.3
A40: 1.4. | B40: 2,0 mm užrakinami sraigtai, pilnu sriegiu, dvejopų sriegių (užsriegta ir sraigto galvutė), pagaminti iš titano lydinio. Sukami šešiakampės žvaigždės formos atsuktuvu | C40: 50 | D40: vnt | E40: 18.81 | F40: 940.5
A41: 1.5. | B41: 2,0 mm užrakinami sraigtai, pilnu sriegiu, dvejopų sriegių (užsriegta ir sraigto galvutė), pagaminti iš titano lydinio. Sukami šešiakampės žvaigždės formos atsuktuvu | C41: 200 | D41: vnt | E41: 22.59 | F41: 4518
A42: 1.6. | B42: Kulnikaulio užrakinama plokštelė (visos kiaurymės užrakinamos), universali, pagaminta iš titano. Fiksuojama Ø 3,5 mm užrakinamais sraigtais, pagamintais iš titano lydinio. | C42: 20 | D42: vnt | E42: 196.32 | F42: 3926.4
A43: 1.7. | B43: Raktikaulio S formos, anatomiškai išlenkta, užrakinama plokštelė. 3,0 - 3,5 mm storio, pagaminta iš titano, pasukta išilgai savo ašies pagal laikrodžio rodyklę. Fiksuojama Ø 3,5 mm užrakinamais ir Ø 3,5 mm kortikaliniais sraigtais. | C43: 20 | D43: vnt | E43: 187.05 | F43: 3741
A44: 1.8. | B44: Plokštelės tubuliarinės 1/3, pagamintos iš plieno. Fiksuojamos Ø 3,5 mm kortikaliniais sraigtais | C44: 800 | D44: vnt | E44: 29.94 | F44: 23952
A45: 1.9. | B45: Plokštelės rekonstrukcinės, tiesios, pagamintos iš plieno. Fiksuojamos Ø 3,5 mm kortikaliniais sraigtais. | C45: 60 | D45: vnt | E45: 53.61 | F45: 3216.6
A46: 1.10. | B46: 3,5 mm kortikaliniai sraigtai, pilnu sriegiu, pagaminti iš plieno. | C46: 2000 | D46: vnt | E46: 2.92 | F46: 5840
A47: 1.11. | B47: 3,5 mm kortikaliniai sraigtai, pilnu sriegiu, pagaminti iš plieno. | C47: 1000 | D47: vnt | E47: 3.27 | F47: 3270
A48: 1.12. | B48: Ø 4,5 mm kaniuliuoti sraigtai, daliniu sriegiu, savisriegiai, pagaminti iš titano lydinio. | C48: 150 | D48: vnt | E48: 28.2 | F48: 4230
A49: 1.13. | B49: Kiršnerio viela Ø 1,1 x 150 - 180 mm | C49: 2000 | D49: vnt | E49: 3.29 | F49: 6580
A50: 1.14. | B50: Kiršnerio viela Ø 1,2 x 150 - 180 mm | C50: 500 | D50: vnt | E50: 3.29 | F50: 1645
A51: 1.15. | B51: Kiršnerio viela Ø 1,6 x 150 - 180 mm | C51: 1200 | D51: vnt | E51: 3.29 | F51: 3948
A52: 1.16. | B52: Kiršnerio viela, kurios vienas galas užaštrintas Ø 1,5 x 150 | C52: 3000 | D52: vnt | E52: 4.29 | F52: 12870
A53: 1.17. | B53: Kiršnerio viela, kurios vienas galas užaštrintas arba su sriegiu | C53: 2000 | D53: vnt | E53: 3.92 | F53: 7840
A54: 1.18. | B54: Kartu su pirkimo dalies prekėmis turi būti pateiktas pilnas instrumentų rinkinys panaudai, nurodant konkrečių panaudai duodamų instrumentų REF kodus ir rinkinio sudėtį | C54: 2 | D54: kompl | E54: 0 | F54: 0
E55: Suma be PVM | F55: =IF((SUMPRODUCT(--(F37:F54=""))>0), "", SUM(F37:F54)) -> 91289 | G55: =IF((SUMPRODUCT(--(F37:F54=""))>0), "Neužpildytos visų objektų kainos", "") -> 
E56: PVM suma | F56: 4564.45
E57: Suma su PVM | F57: =IF(ISBLANK(F56), "", SUM(F55:F56)) -> 95853.45
A61: 2. DALIS | B61: INTRAMEDULINĖS VINYS IR SRAIGTAI
A63: Tiekėjo pasiūlymas:
A64: Nr. | B64: Pavadinimas | C64: Kiekis | D64: Mato vienetas | E64: Kaina be PVM, Eur | F64: Suma be PVM, Eur
A65: 2. | B65: Intramedulinės vinys ir sraigtai
A66: 2.1. | B66: Kaniuliuotos titaninės PFNA vinys. Vinies palinkimo kampas 5°. Proksimalinio vinies galo Ø 16,5 mm. Proksimaliniame vinies gale yra 1 kiaurymė rakinančiam sraigtui, kurio Ø 10,3 mm ir jis įvedamas 130° kampu. Distaliniame vinies gale yra 1 kiaurymė skersinio tvirtinimo sraigtui, kurio Ø 4,9 - 5,0 mm. | C66: 5 | D66: vnt | E66: 217.52 | F66: =IF(ISBLANK(E66),"", PRODUCT(C66,E66)) -> 1087.6
A67: 2.2. | B67: Kaniuliuotos titaninės PFNA vinys. Vinies palinkimo kampas 5°. Proksimalinio vinies galo Ø 16,5 mm. Proksimaliniame vinies gale yra 1 kiaurymė rakinančiam sraigtui, kurio Ø 10,3 mm ir jis įvedamas 130° kampu. Distaliniame vinies gale yra 1 kiaurymė skersinio tvirtinimo sraigtui, kurio Ø 4,9 - 5,0 mm. | C67: 10 | D67: vnt | E67: 217.52 | F67: 2175.2
A68: 2.3. | B68: Kaniuliuotos titaninės PFNA vinys. Vinies palinkimo kampas 5°. Proksimalinio vinies galo Ø 16,5 mm. Proksimaliniame vinies gale yra 1 kiaurymė rakinančiam sraigtui, kurio Ø 10,3 mm ir jis įvedamas 130° kampu. Distaliniame vinies gale yra 1 kiaurymė skersinio tvirtinimo sraigtui, kurio Ø 4,9 - 5,0 mm. | C68: 75 | D68: vnt | E68: 237.29 | F68: 17796.75
A69: 2.4. | B69: Kaniuliuotos titaninės PFNA vinys. Vinies palinkimo kampas 5°. Proksimalinio vinies galo Ø 16,5 mm. Proksimaliniame vinies gale yra 1 kiaurymė rakinančiam sraigtui, kurio Ø 10,3 mm ir jis įvedamas 130° kampu. Distaliniame vinies gale yra 1 kiaurymė skersinio tvirtinimo sraigtui, kurio Ø 4,9 - 5,0 mm. | C69: 80 | D69: vnt | E69: 237.29 | F69: 18983.2
A70: 2.5. | B70: Kaniuliuoti Ø 10,3-10,5 mm sraigtai, pagaminti iš titano lydinio. Naudojami PFNA vinių proksimaliniame gale. | C70: 80 | D70: vnt | E70: 198.34 | F70: 15867.2
A71: 2.6. | B71: Kaniuliuoti Ø 10,3-10,5 mm sraigtai, pagaminti iš titano lydinio. Naudojami PFNA vinių proksimaliniame gale. | C71: 160 | D71: vnt | E71: 217.71 | F71: 34833.6
A72: 2.7. | B72: Ø 4,5-5,0 mm skersinio tvirtinimo sraigtai, pilnu sriegiu, pagaminti iš titano lydinio. Sraigto galvutėje yra vidinis sriegis, skirtas sraigto prisukimui prie atsuktuvo. Naudojami PFNA vinių distaliniame gale. | C72: 100 | D72: vnt | E72: 32.24 | F72: 3224
A73: 2.8. | B73: PFNA vinių proksimalinio galo aklė, pagaminta iš titano lydinio. Ne mažiau 4 ilgių. | C73: 40 | D73: vnt | E73: 22.24 | F73: 889.6
A74: 2.9. | B74: Kartu su pirkimo dalies prekėmis turi būti pateiktas pilnas instrumentų rinkinys panaudai, nurodant konkrečių panaudai duodamų instrumentų REF kodus ir rinkinio sudėtį | C74: 2 | D74: kompl | E74: 0 | F74: 0
E75: Suma be PVM | F75: =IF((SUMPRODUCT(--(F66:F74=""))>0), "", SUM(F66:F74)) -> 94857.15 | G75: =IF((SUMPRODUCT(--(F66:F74=""))>0), "Neužpildytos visų objektų kainos", "") -> 
E76: PVM suma | F76: 4742.86
E77: Suma su PVM | F77: =IF(ISBLANK(F76), "", SUM(F75:F76)) -> 99600.01
A81: 3. DALIS | B81: PLOKŠTELĖS, SRAIGTAI
A83: Tiekėjo pasiūlymas:
A84: Nr. | B84: Pavadinimas | C84: Kiekis | D84: Mato vienetas | E84: Kaina be PVM, Eur | F84: Suma be PVM, Eur
A85: 3. | B85: Plokštelės, sraigtai
A86: 3.1. | B86: Proksimalinio žąstikaulio galo užrakinama plokštelė, pagaminta iš titano. Fiksuojama Ø 3,5 mm užrakinamais ir Ø 3,5 mm kortikaliniais sraigtais. | C86: 100 | D86: vnt | E86: 181.48 | F86: =IF(ISBLANK(E86),"", PRODUCT(C86,E86)) -> 18148
A87: 3.2. | B87: Proksimalinio žąstikaulio galo užrakinama plokštelė, pagaminta iš titano. Fiksuojama Ø 3,5 mm užrakinamais ir Ø 3,5 mm kortikaliniais sraigtais. | C87: 20 | D87: vnt | E87: 181.48 | F87: 3629.6
A88: 3.3. | B88: Distalinio blauzdikaulio galo medialinė užrakinama plokštelė, su išsikišusiu trikampiu vienam užrakinamam sraigtui distalinėje dalyje, pagaminta iš titano. Fiksuojama Ø 3,5 mm užrakinamais ir Ø 3,5 mm kortikaliniais sraigtais. | C88: 20 | D88: vnt | E88: 199.86 | F88: 3997.2
A89: 3.4. | B89: Proksimalinio blauzdikaulio galo šoninė užrakinama kompresinė plokštelė, pagaminta iš titano. Fiksuojama Ø 3,5-5,0 mm užrakinamais ir Ø 3,5-4,5 mm kortikaliniais sraigtais. | C89: 20 | D89: vnt | E89: 195.51 | F89: 3910.2
A90: 3.5. | B90: Anatomiškai išlenkta stipinkaulio distalinio galo plokštelė, pagaminta iš titano. Plokštelės "galvoje" yra 2 eilės septyniems Ø 2.5-2.7 mm užrakinamiems sraigtams, kurie įsukami įvairiais nustatytais kampais. Fiksuojama Ø 2.5-2.7 mm užrakinamais sraigtais ir Ø 3,5 mm kortikaliniais sraigtais. | C90: 15 | D90: vnt | E90: 179.36 | F90: 2690.4
A91: 3.6. | B91: Ø 2,7 mm užrakinami savisriegiai sraigtai, pilnu sriegiu, pagaminti iš titano lydinio. | C91: 100 | D91: vnt | E91: 20.73 | F91: 2073
A92: 3.7. | B92: Ø 2,7 mm užrakinami savisriegiai sraigtai, pilnu sriegiu, pagaminti iš titano lydinio. | C92: 40 | D92: vnt | E92: 24.15 | F92: 966
A93: 3.8. | B93: Ø 2,7 mm užrakinami savisriegiai sraigtai, pilnu sriegiu, pagaminti iš titano lydinio. | C93: 30 | D93: vnt | E93: 24.15 | F93: 724.5
A94: 3.9. | B94: Kartu su pirkimo dalies prekėmis turi būti pateiktas pilnas instrumentų rinkinys panaudai, nurodant konkrečių panaudai duodamų instrumentų REF kodus ir rinkinio sudėtį | C94: 2 | D94: kompl | E94: 0 | F94: 0
E95: Suma be PVM | F95: =IF((SUMPRODUCT(--(F86:F94=""))>0), "", SUM(F86:F94)) -> 36138.9 | G95: =IF((SUMPRODUCT(--(F86:F94=""))>0), "Neužpildytos visų objektų kainos", "") -> 
E96: PVM suma | F96: 1806.95
E97: Suma su PVM | F97: =IF(ISBLANK(F96), "", SUM(F95:F96)) -> 37945.85
A101: 4. DALIS | B101: PLOKŠTELĖS IR SRAIGTAI, SKIRTI SUDĖTINGŲ LŪŽIŲ FIKSACIJAI
A103: Tiekėjo pasiūlymas:
A104: Nr. | B104: Pavadinimas | C104: Kiekis | D104: Mato vienetas | E104: Kaina be PVM, Eur | F104: Suma be PVM, Eur
A105: 4. | B105: Plokštelės ir sraigtai, skirti sudėtingų lūžių fiksacijai
A106: 4.1. | B106: Plokštelės tiesios | C106: 20 | D106: vnt | E106: 148.91 | F106: =IF(ISBLANK(E106),"", PRODUCT(C106,E106)) -> 2978.2
A107: 4.2. | B107: "T" formos plokštelė | C107: 20 | D107: vnt | E107: 158.47 | F107: 3169.4
A108: 4.3. | B108: Plokštelės tiesios | C108: 10 | D108: vnt | E108: 194.88 | F108: 1948.8
A109: 4.4. | B109: Sraigtai savisriegiai 1,2-1,5 diametro | C109: 50 | D109: vnt | E109: 40.34 | F109: 2017
A110: 4.5. | B110: "T" formos plokštelė | C110: 10 | D110: vnr | E110: 201.77 | F110: 2017.7
A111: 4.6. | B111: Sraigtai savisriegiai 1,7-2,0 diametro | C111: 100 | D111: vnt | E111: 40.88 | F111: 4088
A112: 4.7. | B112: Plokštelės tiesios | C112: 10 | D112: vnt | E112: 167.47 | F112: 1674.7
A113: 4.8. | B113: Plokštelės tiesios | C113: 10 | D113: vnt | E113: 190.99 | F113: 1909.9
A114: 4.9. | B114: "T" formos plokštelė | C114: 10 | D114: vnt | E114: 140.32 | F114: 1403.2
A115: 4.10. | B115: Stipinkaulio plokštelės | C115: 150 | D115: vnt | E115: 280.41 | F115: 42061.5
A116: 4.11. | B116: Savisriegiai sraigtai 2,0 - 2,7 diametro | C116: 1400 | D116: vnt | E116: 29.74 | F116: 41636
A117: 4.12. | B117: Savisriegiai sraigtai 2,0 - 2,7 diametro | C117: 200 | D117: vnt | E117: 30.98 | F117: 6196
A118: 4.13. | B118: Sraigtai savisriegiai 2,0-2,3 diametro | C118: 500 | D118: vnt | E118: 32.34 | F118: 16170
A119: 4.14. | B119: Riešo artrodezinė plokštelė | C119: 30 | D119: vnt | E119: 180.02 | F119: 5400.6
A120: 4.15. | B120: Savisriegiai sraigtai 2,0 - 2,7 diametro | C120: 400 | D120: vnt | E120: 30.33 | F120: 12132
A121: 4.16. | B121: Kompresiniai sraigtai | C121: 60 | D121: vnt | E121: 96.52 | F121: 5791.2
A122: 4.17. | B122: Kompresiniai sraigtai | C122: 10 | D122: vnt | E122: 85.38 | F122: 853.8
E123: Suma be PVM | F123: =IF((SUMPRODUCT(--(F106:F122=""))>0), "", SUM(F106:F122)) -> 151448 | G123: =IF((SUMPRODUCT(--(F106:F122=""))>0), "Neužpildytos visų objektų kainos", "") -> 
E124: PVM suma | F124: 7572.4
E125: Suma su PVM | F125: =IF(ISBLANK(F124), "", SUM(F123:F124)) -> 159020.4
A129: 5. DALIS | B129: PETIES AKROMIOKLAVIKULINIO SĄNARIOFIKSACINĖ SISTEMA
A131: Tiekėjo pasiūlymas:
A132: Nr. | B132: Pavadinimas | C132: Kiekis | D132: Mato vienetas | E132: Kaina be PVM, Eur | F132: Suma be PVM, Eur
A133: 5. | B133: Peties akromioklavikulinio sąnariofiksacinė sistema
A134: 5.1. | B134: Peties akromioklavikulinio sąnariofiksacinė sistema | C134: 20 | D134: vnt | F134: =IF(ISBLANK(E134),"", PRODUCT(C134,E134)) -> 
E135: Suma be PVM | F135: =IF(F134="","",SUM(F134:F134)) ->  | G135: =IF(F134="","Neužpildytos visos objektų kainos","") -> Neužpildytos visos objektų kainos
E136: PVM suma
E137: Suma su PVM | F137: =IF(ISBLANK(F136), "", SUM(F135:F136)) -> 
A141: 6. DALIS | B141: INKARINĖ SISTEMA, ACHILO SAUSGYSLĖMS OPERACIJOMS
A143: Tiekėjo pasiūlymas:
A144: Nr. | B144: Pavadinimas | C144: Kiekis | D144: Mato vienetas | E144: Kaina be PVM, Eur | F144: Suma be PVM, Eur
A145: 6. | B145: Inkarinė sistema, achilo sausgyslėms operacijoms
A146: 6.1. | B146: Inkarinė sistema, achilo sausgyslėms operacijoms | C146: 14 | D146: vnt | F146: =IF(ISBLANK(E146),"", PRODUCT(C146,E146)) -> 
E147: Suma be PVM | F147: =IF(F146="","",SUM(F146:F146)) ->  | G147: =IF(F146="","Neužpildytos visos objektų kainos","") -> Neužpildytos visos objektų kainos
E148: PVM suma
E149: Suma su PVM | F149: =IF(ISBLANK(F148), "", SUM(F147:F148)) -> 
A153: 7. DALIS | B153: MENISKO SUSIUVIMO INKARINĖ SISTEMA
A155: Tiekėjo pasiūlymas:
A156: Nr. | B156: Pavadinimas | C156: Kiekis | D156: Mato vienetas | E156: Kaina be PVM, Eur | F156: Suma be PVM, Eur
A157: 7. | B157: Menisko susiuvimo inkarinė sistema
A158: 7.1. | B158: Menisko susiuvimo inkarinė sistema | C158: 40 | D158: vnt | F158: =IF(ISBLANK(E158),"", PRODUCT(C158,E158)) -> 
E159: Suma be PVM | F159: =IF(F158="","",SUM(F158:F158)) ->  | G159: =IF(F158="","Neužpildytos visos objektų kainos","") -> Neužpildytos visos objektų kainos
E160: PVM suma
E161: Suma su PVM | F161: =IF(ISBLANK(F160), "", SUM(F159:F160)) -> 
A165: 8. DALIS | B165: UŽRAKINANTYS PETIES SĄNARIO IMPLANTAI LATERALINEI EILEI
A167: Tiekėjo pasiūlymas:
A168: Nr. | B168: Pavadinimas | C168: Kiekis | D168: Mato vienetas | E168: Kaina be PVM, Eur | F168: Suma be PVM, Eur
A169: 8. | B169: Užrakinantys peties sąnario implantai lateralinei eilei
A170: 8.1. | B170: Užrakinantys peties sąnario implantai lateralinei eilei | C170: 42 | D170: vnt | F170: =IF(ISBLANK(E170),"", PRODUCT(C170,E170)) -> 
E171: Suma be PVM | F171: =IF(F170="","",SUM(F170:F170)) ->  | G171: =IF(F170="","Neužpildytos visos objektų kainos","") -> Neužpildytos visos objektų kainos
E172: PVM suma
E173: Suma su PVM | F173: =IF(ISBLANK(F172), "", SUM(F171:F172)) -> 
A177: 9. DALIS | B177: PETIES SĄNARIO IMPLANTAI
A179: Tiekėjo pasiūlymas:
A180: Nr. | B180: Pavadinimas | C180: Kiekis | D180: Mato vienetas | E180: Kaina be PVM, Eur | F180: Suma be PVM, Eur
A181: 9. | B181: Peties sąnario implantai
A182: 9.1. | B182: Peties sąnario implantai | C182: 140 | D182: vnt | F182: =IF(ISBLANK(E182),"", PRODUCT(C182,E182)) -> 
A183: 9.2. | B183: Peties sąnario implantai | C183: 100 | D183: vnt | F183: =IF(ISBLANK(E183),"", PRODUCT(C183,E183)) -> 
E184: Suma be PVM | F184: =IF((SUMPRODUCT(--(F182:F183=""))>0), "", SUM(F182:F183)) ->  | G184: =IF((SUMPRODUCT(--(F182:F183=""))>0), "Neužpildytos visų objektų kainos", "") -> Neužpildytos visų objektų kainos
E185: PVM suma
E186: Suma su PVM | F186: =IF(ISBLANK(F185), "", SUM(F184:F185)) -> 
A190: 10. DALIS | B190: ARTROSKOPINIAI INSTRUMENTAI
A192: Tiekėjo pasiūlymas:
A193: Nr. | B193: Pavadinimas | C193: Kiekis | D193: Mato vienetas | E193: Kaina be PVM, Eur | F193: Suma be PVM, Eur
A194: 10. | B194: Artroskopiniai instrumentai
A195: 10.1. | B195: Teleskopas | C195: 1 | D195: vnt | F195: =IF(ISBLANK(E195),"", PRODUCT(C195,E195)) -> 
A196: 10.2. | B196: Šviesolaidis | C196: 1 | D196: vnt
A197: 10.3. | B197: Teleskopas | C197: 1 | D197: vnt
A198: 10.4. | B198: Šviesolaidis | C198: 1 | D198: vnt
A199: 10.5. | B199: Trokaro mova | C199: 1 | D199: vnt
A200: 10.6. | B200: Trokaro mova | C200: 1 | D200: vnt
A201: 10.7. | B201: Žnyplės | C201: 2 | D201: vnt
A202: 10.8. | B202: Žnyplės | C202: 2 | D202: vnt
A203: 10.9. | B203: Gramdiklis | C203: 1 | D203: vnt
A204: 10.10. | B204: Dėklas instrumentų autoklavavimui | C204: 2 | D204: vnt
A205: 10.11. | B205: Micro šeiverio rankena | C205: 1 | D205: vnt
A206: 10.12. | B206: Šeiverio antgalis | C206: 1 | D206: vnt
A207: 10.13. | B207: Šeiverio antgalis | C207: 1 | D207: vnt
A208: 10.14. | B208: Šeiverio antgalis | C208: 1 | D208: vnt
A209: 10.15. | B209: Šeiverio antgalis | C209: 1 | D209: vnt
A210: 10.16. | B210: Šeiverio antgalis | C210: 1 | D210: vnt
A211: 10.17. | B211: Šeiverio antgalis | C211: 1 | D211: vnt
A212: 10.18. | B212: Šeiverio antgalis | C212: 1 | D212: vnt
A213: 10.19. | B213: Šeiverio antgalis | C213: 1 | D213: vnt
A214: 10.20. | B214: Šeiverio antgalis | C214: 1 | D214: vnt
A215: 10.21. | B215: Šeiverio antgalis | C215: 1 | D215: vnt
E216: Suma be PVM | F216: =IF((SUMPRODUCT(--(F195:F215=""))>0), "", SUM(F195:F215)) ->  | G216: =IF((SUMPRODUCT(--(F195:F215=""))>0), "Neužpildytos visų objektų kainos", "") -> Neužpildytos visų objektų kainos
E217: PVM suma
E218: Suma su PVM | F218: =IF(ISBLANK(F217), "", SUM(F216:F217)) -> 
A222: 11. DALIS | B222: SIŪLAI RAIŠČIAMS – SIUVIMO PRIEMONĖ
A224: Tiekėjo pasiūlymas:
A225: Nr. | B225: Pavadinimas | C225: Kiekis | D225: Mato vienetas | E225: Kaina be PVM, Eur | F225: Suma be PVM, Eur
A226: 11. | B226: Siūlai raiščiams – siuvimo priemonė
A227: 11.1. | B227: Siūlai raiščiams – siuvimo priemonė | C227: 100 | D227: vnt | F227: =IF(ISBLANK(E227),"", PRODUCT(C227,E227)) -> 
E228: Suma be PVM | F228: =IF(F227="","",SUM(F227:F227)) ->  | G228: =IF(F227="","Neužpildytos visos objektų kainos","") -> Neužpildytos visos objektų kainos
E229: PVM suma
E230: Suma su PVM | F230: =IF(ISBLANK(F229), "", SUM(F228:F229)) -> 
A234: 12. DALIS | B234: SIŪLAI RAIŠČIAMS – SIUVIMO PRIEMONĖ
A236: Tiekėjo pasiūlymas:
A237: Nr. | B237: Pavadinimas | C237: Kiekis | D237: Mato vienetas | E237: Kaina be PVM, Eur | F237: Suma be PVM, Eur
A238: 12. | B238: Siūlai raiščiams – siuvimo priemonė
A239: 12.1. | B239: Siūlai raiščiams – siuvimo priemonė | C239: 150 | D239: vnt | F239: =IF(ISBLANK(E239),"", PRODUCT(C239,E239)) -> 
E240: Suma be PVM | F240: =IF(F239="","",SUM(F239:F239)) ->  | G240: =IF(F239="","Neužpildytos visos objektų kainos","") -> Neužpildytos visos objektų kainos
E241: PVM suma
E242: Suma su PVM | F242: =IF(ISBLANK(F241), "", SUM(F240:F241)) -> 
A246: 13. DALIS | B246: SIŪLAI RAIŠČIAMS – SIUVIMO PRIEMONĖ
A248: Tiekėjo pasiūlymas:
A249: Nr. | B249: Pavadinimas | C249: Kiekis | D249: Mato vienetas | E249: Kaina be PVM, Eur | F249: Suma be PVM, Eur
A250: 13. | B250: Siūlai raiščiams – siuvimo priemonė
A251: 13.1. | B251: Siūlai raiščiams – siuvimo priemonė | C251: 100 | D251: vnt | F251: =IF(ISBLANK(E251),"", PRODUCT(C251,E251)) -> 
E252: Suma be PVM | F252: =IF(F251="","",SUM(F251:F251)) ->  | G252: =IF(F251="","Neužpildytos visos objektų kainos","") -> Neužpildytos visos objektų kainos
E253: PVM suma
E254: Suma su PVM | F254: =IF(ISBLANK(F253), "", SUM(F252:F253)) -> 

Sheet Subtiekėjai ir priedai
A2: Ūkio subjektai (įskaitant kvazisubtiekėjus - fiziniai asmenys, kuriuos ketinama įdarbinti pirkimo laimėjimo atveju), kurių pajėgumais tiekėjas remiasi, kad atitiktų keliamus kvalifikacijos reikalavimus:
A5: Pavadinimas* | C5: Kodas, adresas | F5: Perduodami įsipareigojimai | I5: Perduodamų įsipareigojimų dalis nuo visos pirkimo sutarties (Eur arba %) | K5: Kval. Reikalavimo Nr.
A17: Subtiekėjams / subteikėjams / subrangovams numatomos perduoti veiklos (privaloma nurodyti) ir šių ūkio subjektų pavadinimai (jei žinomi):
A19: Pavadinimas | C19: Kodas, adresas | F19: Perduodama veikla* | I19: Perduodamos veiklos dalis nuo visos pirkimo sutarties (Eur arba %)
A33: Kartu su pasiūlymu pateikiami šie dokumentai:
A35: Nr. | B35: Dokumento pavadinimas | H35: Dokumentas yra konfidencialus? Taip/Ne
A36: 1 | B36: Jungtinės veiklos kopija (jei taikoma)
A37: 2 | B37: Europos bendrasis viešųjų pirkimų dokumentas | H37: Ne
A38: 3 | B38: Subtiekimo sutartis, ketinimų protokolas, preliminarios sutartys ar kiti dokumentai, patvirtinantys, kad laimėjus pirkimą tiekėjui bus prieinami kitų ūkio subjektų ištekliai (jei pasitelkiami kvalifikacijos atitikimui)
A39: 4 | B39: Pasiūlymo atitikimą pirkimo sąlygų techninei specifikacijai pagrindžiantys dokumentai | H39: Taip
A40: 5 | B40: Katalogas 1.1 - KONFIDENCIALU | H40: Taip
A41: 6 | B41: Katalogas 1.2 - KONFIDENCIALU | H41: Taip
A42: 7 | B42: Katalogas 2 - KONFIDENCIALU | H42: Taip
A43: 8 | B43: Katalogas 3 - KONFIDENCIALU | H43: Taip
A44: 9 | B44: Katalogas 4.1 - KONFIDENCIALU | H44: Taip
A45: 10 | B45: Katalogas 4.2 - KONFIDENCIALU | H45: Taip
A46: 11 | B46: Katalogas 4.3 - KONFIDENCIALU | H46: Taip
A48: Pasiūlyme nurodyta Prekės kaina, išskyrus jos sudedamąsias dalis, subtiekėjai, taip pat kita informacija, kuri teisės aktų nustatyta tvarka turi būti skelbiama arba kitokiu būdu viešai prieinama visuomenei, nėra laikoma konfidencialia informacija. Konfidencialią informaciją sudaro, visų pirma, komercinė (gamybinė) paslaptis ir konfidencialieji pasiūlymų aspektai. Informacija, kurią viešai skelbti įpareigoja Lietuvos Respublikos įstatymai, negali būti tiekėjo nurodoma kaip konfidenciali, todėl, tiekėjui nurodžius tokią informaciją kaip konfidencialią, perkančioji organizacija turi teisę ją skelbti. Jei tiekėjas nenurodo konfidencialios informacijos, laikoma, kad konfidencialios informacijos tiekėjo pasiūlyme nėra. Vadovaujantis Informacijos viešinimo Centrinėje viešųjų pirkimų informacinėje sistemoje tvarkos aprašu, patvirtintu Viešųjų pirkimų tarnybos direktoriaus 2017 m. birželio 19 d. įsakymu Nr. 1S-91 „Dėl Informacijos viešinimo Centrinėje viešųjų pirkimų informacinėje sistemoje tvarkos aprašo patvirtinimo“, perkančioji organizacija laimėjusio dalyvio pasiūlymą, išskyrus informaciją, kurią tiekėjas nurodė kaip konfidencialią, paskelbs CVP IS.
A51: Tiekėjo arba jo įgalioto asmens pareigų pavadinimas: | E51: Direktorius
A53: Pasirašančio asmens vardas ir pavardė: | E53: Gintaras Vaitkevičius
A100: 5593 2021-09-01 08:53:58
